[Event "*** SCC Grand Prix: Titled Tuesday Blitz"]
[Site "Chess.com"]
[Date "2020.07.07"]
[Round "3"]
[White "PenguinPacks"]
[Black "talaicito"]
[Result "0-1"]
[WhiteElo "2356"]
[BlackElo "2146"]
[TimeControl "180+1"]
[EndTime "10:27:53 PDT"]
[Termination "talaicito won by resignation"]

1. e4 {[%clk 0:03:00.9]} 1... e5 {[%clk 0:02:57.6]} 2. Nf3 {[%clk 0:03:00.6]}
2... Nc6 {[%clk 0:02:57.1]} 3. Bb5 {[%clk 0:03:01.2]} 3... a6 {[%clk 0:02:57.3]}
4. Ba4 {[%clk 0:03:01.3]} 4... Nf6 {[%clk 0:02:57.8]} 5. d4 {[%clk 0:02:59.9]}
5... b5 {[%clk 0:02:49.7]} 6. dxe5 {[%clk 0:02:49.2]} 6... bxa4 {[%clk
0:02:44.7]} 7. exf6 {[%clk 0:02:49]} 7... Qxf6 {[%clk 0:02:44.9]} 8. Nc3 {[%clk
0:02:48.5]} 8... Bb4 {[%clk 0:02:40.9]} 9. O-O {[%clk 0:02:47.4]} 9... Bxc3
{[%clk 0:02:39]} 10. bxc3 {[%clk 0:02:46.7]} 10... Qxc3 {[%clk 0:02:39]} 11. Rb1
{[%clk 0:02:39.9]} 11... O-O {[%clk 0:02:38.9]} 12. Bb2 {[%clk 0:02:39.7]} 12...
Qc4 {[%clk 0:02:39.1]} 13. Re1 {[%clk 0:02:24.3]} 13... d6 {[%clk 0:02:19.5]}
14. Re3 {[%clk 0:02:13.1]} 14... Bd7 {[%clk 0:02:05.3]} 15. Ng5 {[%clk
0:02:04.6]} 15... h6 {[%clk 0:01:58.3]} 16. Rc3 {[%clk 0:01:35.9]} 16... Qxa2
{[%clk 0:01:42.4]} 17. Nf3 {[%clk 0:00:53.3]} 17... Qe6 {[%clk 0:01:28]} 18. Qd5
{[%clk 0:00:44.9]} 18... Rab8 {[%clk 0:00:59.4]} 19. Qh5 {[%clk 0:00:10]} 19...
Rb5 {[%clk 0:00:45]} 20. Qh4 {[%clk 0:00:08.8]} 20... Rfb8 {[%clk 0:00:40.5]}
0-1

[Event "*** SCC Grand Prix: Titled Tuesday Blitz"]
[Site "Chess.com"]
[Date "2020.07.07"]
[Round "3"]
[White "esrosenberg"]
[Black "GustavoJuarezF"]
[Result "1-0"]
[WhiteElo "2290"]
[BlackElo "1994"]
[TimeControl "180+1"]
[EndTime "10:27:54 PDT"]
[Termination "esrosenberg won on time"]

1. Nf3 {[%clk 0:03:00.8]} 1... d5 {[%clk 0:02:58.6]} 2. c4 {[%clk 0:03:01.1]}
2... e6 {[%clk 0:02:57.3]} 3. d4 {[%clk 0:03:01.3]} 3... Nf6 {[%clk 0:02:56.1]}
4. Nc3 {[%clk 0:03:01.5]} 4... c6 {[%clk 0:02:55.8]} 5. Bg5 {[%clk 0:03:01.3]}
5... Nbd7 {[%clk 0:02:54.7]} 6. e3 {[%clk 0:03:00.8]} 6... Be7 {[%clk
0:02:54.5]} 7. Qc2 {[%clk 0:03:00.7]} 7... O-O {[%clk 0:02:53.5]} 8. Rd1 {[%clk
0:03:00.5]} 8... Re8 {[%clk 0:02:43.1]} 9. a3 {[%clk 0:02:59.9]} 9... dxc4
{[%clk 0:02:26.4]} 10. Bxc4 {[%clk 0:02:59.5]} 10... Nb6 {[%clk 0:02:17.3]} 11.
Ba2 {[%clk 0:02:52.9]} 11... Nbd5 {[%clk 0:02:15]} 12. Bb1 {[%clk 0:02:49]}
12... g6 {[%clk 0:02:12.5]} 13. h4 {[%clk 0:02:33.2]} 13... Nxc3 {[%clk
0:02:11.8]} 14. bxc3 {[%clk 0:02:29.1]} 14... Qa5 {[%clk 0:02:08.4]} 15. a4
{[%clk 0:02:09.8]} 15... Nd5 {[%clk 0:02:05.1]} 16. Bxe7 {[%clk 0:01:47.5]}
16... Rxe7 {[%clk 0:02:02.6]} 17. Rc1 {[%clk 0:01:48]} 17... c5 {[%clk
0:01:58.9]} 18. h5 {[%clk 0:01:44.9]} 18... Bd7 {[%clk 0:01:55]} 19. hxg6 {[%clk
0:01:45]} 19... hxg6 {[%clk 0:01:53.9]} 20. Ne5 {[%clk 0:01:41.5]} 20... Bxa4
{[%clk 0:01:52.5]} 21. Qd2 {[%clk 0:01:07.8]} 21... Rc8 {[%clk 0:01:44.5]} 22.
e4 {[%clk 0:01:07.2]} 22... cxd4 {[%clk 0:01:25.4]} 23. Qh6 {[%clk 0:01:00.2]}
1-0

[Event "*** SCC Grand Prix: Titled Tuesday Blitz"]
[Site "Chess.com"]
[Date "2020.07.07"]
[Round "3"]
[White "Lucas_Tomiello"]
[Black "tapu2"]
[Result "1/2-1/2"]
[WhiteElo "2428"]
[BlackElo "2661"]
[TimeControl "180+1"]
[EndTime "10:27:55 PDT"]
[Termination "Game drawn by agreement"]

1. e4 {[%clk 0:03:00.9]} 1... c6 {[%clk 0:02:57.9]} 2. d4 {[%clk 0:03:00.3]}
2... d5 {[%clk 0:02:58.1]} 3. e5 {[%clk 0:03:01]} 3... Bf5 {[%clk 0:02:57]} 4.
Nf3 {[%clk 0:03:01.2]} 4... e6 {[%clk 0:02:57.3]} 5. Be2 {[%clk 0:03:01.5]} 5...
c5 {[%clk 0:02:57.8]} 6. O-O {[%clk 0:03:01.6]} 6... Nc6 {[%clk 0:02:57.3]} 7.
Be3 {[%clk 0:03:01.8]} 7... cxd4 {[%clk 0:02:54.3]} 8. Nxd4 {[%clk 0:03:00.6]}
8... Nge7 {[%clk 0:02:51.7]} 9. f4 {[%clk 0:02:45.6]} 9... Nxd4 {[%clk
0:02:48.3]} 10. Bxd4 {[%clk 0:02:45.6]} 10... Nc6 {[%clk 0:02:48.6]} 11. Bf2
{[%clk 0:02:45.6]} 11... Be7 {[%clk 0:02:37.2]} 12. Nd2 {[%clk 0:02:40.9]} 12...
h6 {[%clk 0:02:35.9]} 13. Nb3 {[%clk 0:02:33.1]} 13... O-O {[%clk 0:02:35]} 14.
c3 {[%clk 0:02:31.1]} 14... Bh7 {[%clk 0:02:28.2]} 15. Kh1 {[%clk 0:02:29.6]}
15... Qc7 {[%clk 0:02:27.9]} 16. Bf3 {[%clk 0:02:07.4]} 16... f6 {[%clk
0:02:20.9]} 17. exf6 {[%clk 0:01:59.1]} 17... Rxf6 {[%clk 0:02:20.8]} 18. g3
{[%clk 0:01:56.9]} 18... Raf8 {[%clk 0:02:12.1]} 19. Qe2 {[%clk 0:01:55.2]}
19... g5 {[%clk 0:02:03]} 20. Nd4 {[%clk 0:01:36.4]} 20... Qd7 {[%clk
0:01:46.1]} 21. fxg5 {[%clk 0:01:29.1]} 21... hxg5 {[%clk 0:01:40.4]} 22. Bg4
{[%clk 0:01:03.2]} 22... Be4+ {[%clk 0:01:38.8]} 23. Kg1 {[%clk 0:01:03]} 23...
Ne5 {[%clk 0:01:28]} 24. Be3 {[%clk 0:00:49.4]} 24... Rxf1+ {[%clk 0:01:22.6]}
25. Rxf1 {[%clk 0:00:34.1]} 25... Rxf1+ {[%clk 0:01:18]} 26. Kxf1 {[%clk
0:00:32.2]} 26... Nxg4 {[%clk 0:01:15]} 27. Qxg4 {[%clk 0:00:28.5]} 27... Bf5
{[%clk 0:01:04.8]} 1/2-1/2

[Event "*** SCC Grand Prix: Titled Tuesday Blitz"]
[Site "Chess.com"]
[Date "2020.07.07"]
[Round "3"]
[White "mr65"]
[Black "Karacsonyi_Gellert"]
[Result "0-1"]
[WhiteElo "2091"]
[BlackElo "2471"]
[TimeControl "180+1"]
[EndTime "10:27:56 PDT"]
[Termination "Karacsonyi_Gellert won on time"]

1. e4 {[%clk 0:02:56.8]} 1... c5 {[%clk 0:02:59.8]} 2. d4 {[%clk 0:02:55.8]}
2... cxd4 {[%clk 0:02:59.5]} 3. c3 {[%clk 0:02:55.9]} 3... Nf6 {[%clk
0:03:00.1]} 4. e5 {[%clk 0:02:55.1]} 4... Nd5 {[%clk 0:03:00.7]} 5. Bc4 {[%clk
0:02:53.9]} 5... Nb6 {[%clk 0:03:00.4]} 6. Bb3 {[%clk 0:02:53]} 6... e6 {[%clk
0:03:01]} 7. Nf3 {[%clk 0:02:51]} 7... d6 {[%clk 0:03:00.2]} 8. exd6 {[%clk
0:02:49.9]} 8... Bxd6 {[%clk 0:02:58.6]} 9. cxd4 {[%clk 0:02:48.8]} 9... O-O
{[%clk 0:02:58.1]} 10. O-O {[%clk 0:02:48.5]} 10... N8d7 {[%clk 0:02:58.2]} 11.
Nc3 {[%clk 0:02:47.5]} 11... Nf6 {[%clk 0:02:58.5]} 12. Bg5 {[%clk 0:02:43.3]}
12... h6 {[%clk 0:02:58.8]} 13. Bh4 {[%clk 0:02:41.3]} 13... Bd7 {[%clk
0:02:59.2]} 14. Rc1 {[%clk 0:02:37.5]} 14... Rc8 {[%clk 0:02:58.7]} 15. Ne5
{[%clk 0:02:16.9]} 15... Bc6 {[%clk 0:02:45.1]} 16. Nxc6 {[%clk 0:02:14.9]}
16... Rxc6 {[%clk 0:02:44.7]} 17. Ne4 {[%clk 0:02:09.6]} 17... Rxc1 {[%clk
0:02:40.2]} 18. Qxc1 {[%clk 0:02:09.1]} 18... Be7 {[%clk 0:02:40.8]} 19. Nxf6+
{[%clk 0:01:58.4]} 19... Bxf6 {[%clk 0:02:41.7]} 20. Bxf6 {[%clk 0:01:56.7]}
20... Qxf6 {[%clk 0:02:42.6]} 21. Qe3 {[%clk 0:01:55.6]} 21... Rd8 {[%clk
0:02:32.7]} 22. Rd1 {[%clk 0:01:55.1]} 22... Nd5 {[%clk 0:02:33.2]} 23. Qe4
{[%clk 0:01:47.3]} 23... Qg5 {[%clk 0:02:26.5]} 24. g3 {[%clk 0:01:42.4]} 24...
b6 {[%clk 0:02:16.4]} 25. h4 {[%clk 0:01:38.9]} 25... Qe7 {[%clk 0:02:16]} 26.
a3 {[%clk 0:01:32.3]} 26... Nf6 {[%clk 0:02:15.8]} 27. Qf4 {[%clk 0:01:25.7]}
27... Qd6 {[%clk 0:02:11.1]} 28. Qxd6 {[%clk 0:01:21.7]} 28... Rxd6 {[%clk
0:02:12]} 29. Kf1 {[%clk 0:01:03.8]} 29... Kf8 {[%clk 0:02:12.2]} 30. Ke2 {[%clk
0:01:03]} 30... Ke7 {[%clk 0:02:12.6]} 31. f4 {[%clk 0:00:59.2]} 31... Ne4
{[%clk 0:02:11]} 32. Kf3 {[%clk 0:00:54.3]} 32... Nf6 {[%clk 0:02:11.2]} 33. Ba4
{[%clk 0:00:40]} 33... Rd8 {[%clk 0:02:08.5]} 34. Ke3 {[%clk 0:00:29.6]} 34...
Rc8 {[%clk 0:02:08.3]} 35. Rd2 {[%clk 0:00:20.6]} 35... Kd6 {[%clk 0:02:04.5]}
36. Rc2 {[%clk 0:00:19.5]} 36... Rxc2 {[%clk 0:02:04.5]} 37. Bxc2 {[%clk
0:00:18.5]} 37... Nd5+ {[%clk 0:02:02]} 38. Ke4 {[%clk 0:00:14.2]} 38... Ne7
{[%clk 0:02:01.9]} 39. b4 {[%clk 0:00:12.8]} 39... Nf5 {[%clk 0:02:01.7]} 40. g4
{[%clk 0:00:11.9]} 40... Nxh4 {[%clk 0:02:01.9]} 41. g5 {[%clk 0:00:09.6]} 41...
h5 {[%clk 0:01:59.7]} 42. Ke3 {[%clk 0:00:06.9]} 42... g6 {[%clk 0:01:59.6]} 43.
Ba4 {[%clk 0:00:04.5]} 43... Nf5+ {[%clk 0:02:00.3]} 44. Ke4 {[%clk 0:00:03.7]}
44... h4 {[%clk 0:01:58.4]} 45. Bd1 {[%clk 0:00:02.1]} 45... h3 {[%clk
0:01:57.2]} 46. Bf3 {[%clk 0:00:01.8]} 46... h2 {[%clk 0:01:57.7]} 0-1

[Event "*** SCC Grand Prix: Titled Tuesday Blitz"]
[Site "Chess.com"]
[Date "2020.07.07"]
[Round "3"]
[White "Hikaru"]
[Black "VovenRogel"]
[Result "1/2-1/2"]
[WhiteElo "3214"]
[BlackElo "2707"]
[TimeControl "180+1"]
[EndTime "10:28:00 PDT"]
[Termination "Game drawn by repetition"]

1. Nf3 {[%clk 0:03:00.9]} 1... d5 {[%clk 0:02:57]} 2. b3 {[%clk 0:03:00]} 2...
Nf6 {[%clk 0:02:55.1]} 3. Bb2 {[%clk 0:02:56.1]} 3... g6 {[%clk 0:02:54.8]} 4.
e3 {[%clk 0:02:55.4]} 4... Bg7 {[%clk 0:02:54.5]} 5. c4 {[%clk 0:02:55.7]} 5...
c6 {[%clk 0:02:53.7]} 6. d4 {[%clk 0:02:55]} 6... O-O {[%clk 0:02:53]} 7. Bd3
{[%clk 0:02:54.5]} 7... Ne4 {[%clk 0:02:48.6]} 8. Nc3 {[%clk 0:02:52.3]} 8...
Nxc3 {[%clk 0:02:38.8]} 9. Bxc3 {[%clk 0:02:51.9]} 9... c5 {[%clk 0:02:39.1]}
10. Rc1 {[%clk 0:02:49.7]} 10... cxd4 {[%clk 0:02:36.9]} 11. Nxd4 {[%clk
0:02:48.8]} 11... e5 {[%clk 0:02:33.8]} 12. Ne2 {[%clk 0:02:37.7]} 12... d4
{[%clk 0:02:31.1]} 13. exd4 {[%clk 0:02:35.8]} 13... exd4 {[%clk 0:02:32]} 14.
Bb2 {[%clk 0:02:35.5]} 14... Nc6 {[%clk 0:02:31]} 15. O-O {[%clk 0:02:35.3]}
15... Re8 {[%clk 0:02:23.9]} 16. Qd2 {[%clk 0:02:31.3]} 16... Qh4 {[%clk
0:02:22.4]} 17. Rce1 {[%clk 0:02:20.2]} 17... Bh6 {[%clk 0:02:17.7]} 18. f4
{[%clk 0:02:20.1]} 18... Bg7 {[%clk 0:02:10.6]} 19. b4 {[%clk 0:01:58.3]} 19...
a5 {[%clk 0:02:06.1]} 20. b5 {[%clk 0:01:12.7]} 20... Nb4 {[%clk 0:02:03.7]} 21.
Bxd4 {[%clk 0:01:12.6]} 21... Bxd4+ {[%clk 0:02:00.8]} 22. Nxd4 {[%clk
0:01:13.5]} 22... Rd8 {[%clk 0:02:01.1]} 23. a3 {[%clk 0:01:04.3]} 23... Qf6
{[%clk 0:01:32.6]} 24. Bb1 {[%clk 0:00:57.8]} 24... Rxd4 {[%clk 0:01:24]} 25.
Re8+ {[%clk 0:00:56]} 25... Kg7 {[%clk 0:01:24.3]} 26. Qc3 {[%clk 0:00:56.7]}
26... b6 {[%clk 0:01:18.1]} 27. axb4 {[%clk 0:00:54.2]} 27... axb4 {[%clk
0:01:04.9]} 28. Qxb4 {[%clk 0:00:55.1]} 28... Rd6 {[%clk 0:01:04.8]} 29. c5
{[%clk 0:00:38.2]} 29... bxc5 {[%clk 0:01:04.1]} 30. Qxc5 {[%clk 0:00:38.8]}
30... Bb7 {[%clk 0:01:04.5]} 31. Rxa8 {[%clk 0:00:39.3]} 31... Bxa8 {[%clk
0:01:05.4]} 32. Qe5 {[%clk 0:00:24.8]} 32... Rd2 {[%clk 0:01:01.1]} 33. Qxf6+
{[%clk 0:00:22.7]} 33... Kxf6 {[%clk 0:01:02]} 34. Rf2 {[%clk 0:00:23.3]} 34...
Rd1+ {[%clk 0:01:02.1]} 35. Rf1 {[%clk 0:00:23.9]} 35... Rd2 {[%clk 0:01:03]}
36. Rf2 {[%clk 0:00:24]} 36... Rd1+ {[%clk 0:01:03.2]} 37. Rf1 {[%clk
0:00:24.4]} 37... Rd2 {[%clk 0:01:04.1]} 1/2-1/2

[Event "*** SCC Grand Prix: Titled Tuesday Blitz"]
[Site "Chess.com"]
[Date "2020.07.07"]
[Round "3"]
[White "MashaFromRussia"]
[Black "Kezin_Roman"]
[Result "0-1"]
[WhiteElo "2432"]
[BlackElo "2742"]
[TimeControl "180+1"]
[EndTime "10:28:00 PDT"]
[Termination "Kezin_Roman won by resignation"]

1. d4 {[%clk 0:03:00.9]} 1... d5 {[%clk 0:02:59.8]} 2. c4 {[%clk 0:03:00.9]}
2... e6 {[%clk 0:03:00.4]} 3. Nf3 {[%clk 0:03:01.2]} 3... Nf6 {[%clk 0:03:00.9]}
4. g3 {[%clk 0:03:01.5]} 4... Be7 {[%clk 0:03:01.4]} 5. Bg2 {[%clk 0:03:01.9]}
5... O-O {[%clk 0:03:02.1]} 6. O-O {[%clk 0:03:02.4]} 6... dxc4 {[%clk
0:03:02.9]} 7. Ne5 {[%clk 0:03:02.7]} 7... c5 {[%clk 0:03:03.4]} 8. dxc5 {[%clk
0:03:02.3]} 8... Qc7 {[%clk 0:03:04]} 9. Nxc4 {[%clk 0:03:02.4]} 9... Rd8 {[%clk
0:03:04.7]} 10. Nbd2 {[%clk 0:03:02.3]} 10... Qxc5 {[%clk 0:03:00.6]} 11. a3
{[%clk 0:03:02.3]} 11... Nc6 {[%clk 0:02:57.9]} 12. b4 {[%clk 0:03:01.9]} 12...
Qh5 {[%clk 0:02:58.5]} 13. e3 {[%clk 0:02:58.2]} 13... Qh6 {[%clk 0:02:46.4]}
14. Bb2 {[%clk 0:02:53.3]} 14... Bd7 {[%clk 0:02:46.1]} 15. Qe2 {[%clk
0:02:50.6]} 15... b5 {[%clk 0:02:42.5]} 16. Ne5 {[%clk 0:02:46.5]} 16... Nxe5
{[%clk 0:02:42.7]} 17. Bxe5 {[%clk 0:02:47.4]} 17... Rac8 {[%clk 0:02:39.1]} 18.
h4 {[%clk 0:02:36]} 18... Bc6 {[%clk 0:02:36.3]} 19. Bf4 {[%clk 0:02:28.4]}
19... Qg6 {[%clk 0:02:35.5]} 20. e4 {[%clk 0:02:26.6]} 20... a6 {[%clk 0:02:32]}
21. Rfd1 {[%clk 0:02:26.1]} 21... Rd7 {[%clk 0:02:19.9]} 22. Rac1 {[%clk
0:02:25.2]} 22... Rdd8 {[%clk 0:02:17.8]} 23. f3 {[%clk 0:02:04.4]} 23... h6
{[%clk 0:02:17.7]} 24. Nb3 {[%clk 0:02:04]} 24... Nh5 {[%clk 0:02:16.9]} 25.
Rxd8+ {[%clk 0:02:01.1]} 25... Bxd8 {[%clk 0:02:17.8]} 26. Na5 {[%clk
0:01:42.8]} 26... Nxf4 {[%clk 0:02:17.6]} 27. gxf4 {[%clk 0:01:35.1]} 27... Bb6+
{[%clk 0:01:47.8]} 28. Kh2 {[%clk 0:01:31]} 28... Bd7 {[%clk 0:00:45.5]} 29.
Rxc8+ {[%clk 0:01:17.5]} 29... Bxc8 {[%clk 0:00:46.4]} 30. Qc2 {[%clk
0:01:12.8]} 30... Bd7 {[%clk 0:00:46.5]} 31. Qd3 {[%clk 0:01:10.7]} 31... Qf6
{[%clk 0:00:46.9]} 32. Kh3 {[%clk 0:00:44.9]} 32... Bf2 {[%clk 0:00:45.5]} 0-1

[Event "*** SCC Grand Prix: Titled Tuesday Blitz"]
[Site "Chess.com"]
[Date "2020.07.07"]
[Round "3"]
[White "platy3"]
[Black "Roman_Ovetchkin"]
[Result "1-0"]
[WhiteElo "2798"]
[BlackElo "2578"]
[TimeControl "180+1"]
[EndTime "10:28:02 PDT"]
[Termination "platy3 won by resignation"]

1. e4 {[%clk 0:03:00.9]} 1... c6 {[%clk 0:02:59.9]} 2. Nf3 {[%clk 0:03:00.7]}
2... d5 {[%clk 0:03:00.4]} 3. d3 {[%clk 0:03:01.3]} 3... Bg4 {[%clk 0:02:58.5]}
4. h3 {[%clk 0:02:59.6]} 4... Bh5 {[%clk 0:02:58.3]} 5. Qe2 {[%clk 0:02:59.7]}
5... e6 {[%clk 0:02:57.4]} 6. g4 {[%clk 0:02:59.8]} 6... Bg6 {[%clk 0:02:57]} 7.
h4 {[%clk 0:03:00.2]} 7... dxe4 {[%clk 0:02:51.5]} 8. dxe4 {[%clk 0:02:59.8]}
8... h5 {[%clk 0:02:51.6]} 9. g5 {[%clk 0:02:50.5]} 9... Na6 {[%clk 0:01:55.7]}
10. Nc3 {[%clk 0:02:47.6]} 10... Bb4 {[%clk 0:01:53.4]} 11. Bd2 {[%clk
0:02:45.5]} 11... Qc7 {[%clk 0:01:50.3]} 12. a3 {[%clk 0:02:41.2]} 12... Bd6
{[%clk 0:01:34.6]} 13. O-O-O {[%clk 0:02:40.1]} 13... Ne7 {[%clk 0:01:24.7]} 14.
Be3 {[%clk 0:02:12.9]} 14... Bf4 {[%clk 0:01:16]} 15. Qd2 {[%clk 0:02:09.6]}
15... Bxe3 {[%clk 0:01:13.7]} 16. Qxe3 {[%clk 0:02:10.5]} 16... Qa5 {[%clk
0:00:53.8]} 17. Bxa6 {[%clk 0:01:56.9]} 17... Qxa6 {[%clk 0:00:52.5]} 18. Qc5
{[%clk 0:01:53.8]} 18... Qb6 {[%clk 0:00:50]} 19. Qxb6 {[%clk 0:01:36.6]} 19...
axb6 {[%clk 0:00:48.4]} 20. Ne5 {[%clk 0:01:37.5]} 20... f6 {[%clk 0:00:23.2]}
21. gxf6 {[%clk 0:01:36.3]} 21... gxf6 {[%clk 0:00:24.1]} 22. Nd7 {[%clk
0:01:36.8]} 22... Kf7 {[%clk 0:00:24.1]} 23. Nxb6 {[%clk 0:01:36.1]} 23... Rad8
{[%clk 0:00:24.6]} 24. a4 {[%clk 0:01:28]} 24... e5 {[%clk 0:00:24.5]} 25. a5
{[%clk 0:01:25]} 25... Ke6 {[%clk 0:00:23.6]} 26. Nba4 {[%clk 0:01:21.1]} 26...
Kf7 {[%clk 0:00:19.1]} 27. Nc5 {[%clk 0:01:20.7]} 27... Rb8 {[%clk 0:00:13.5]}
28. N3a4 {[%clk 0:01:20.8]} 28... Rhd8 {[%clk 0:00:11.6]} 29. Rxd8 {[%clk
0:01:16.6]} 29... Rxd8 {[%clk 0:00:12.5]} 30. Nxb7 {[%clk 0:01:17.1]} 30... Ra8
{[%clk 0:00:10.3]} 31. Nac5 {[%clk 0:01:16.7]} 31... f5 {[%clk 0:00:08.3]} 32.
f3 {[%clk 0:01:16.2]} 32... fxe4 {[%clk 0:00:07.8]} 33. fxe4 {[%clk 0:01:17.1]}
33... Nc8 {[%clk 0:00:07]} 34. Rd1 {[%clk 0:01:14.3]} 1-0

[Event "*** SCC Grand Prix: Titled Tuesday Blitz"]
[Site "Chess.com"]
[Date "2020.07.07"]
[Round "3"]
[White "ElCoachRene"]
[Black "JozefKneht"]
[Result "0-1"]
[WhiteElo "2239"]
[BlackElo "2444"]
[TimeControl "180+1"]
[EndTime "10:28:04 PDT"]
[Termination "JozefKneht won by checkmate"]

1. d4 {[%clk 0:03:00.9]} 1... d5 {[%clk 0:02:59.3]} 2. Bf4 {[%clk 0:03:01.2]}
2... Nf6 {[%clk 0:02:58]} 3. e3 {[%clk 0:03:01.6]} 3... c5 {[%clk 0:02:58.6]} 4.
c3 {[%clk 0:03:01.6]} 4... Nc6 {[%clk 0:02:59.5]} 5. Nd2 {[%clk 0:03:01.9]} 5...
Qb6 {[%clk 0:02:59]} 6. Qb3 {[%clk 0:03:01.4]} 6... cxd4 {[%clk 0:02:59.5]} 7.
exd4 {[%clk 0:03:01.2]} 7... Bf5 {[%clk 0:02:58.9]} 8. Ngf3 {[%clk 0:02:56.8]}
8... e6 {[%clk 0:02:58.9]} 9. Qxb6 {[%clk 0:02:54.6]} 9... axb6 {[%clk
0:02:58.5]} 10. Be2 {[%clk 0:02:54.9]} 10... Be7 {[%clk 0:02:57.4]} 11. O-O
{[%clk 0:02:53.2]} 11... h6 {[%clk 0:02:57.4]} 12. a3 {[%clk 0:02:50.4]} 12...
O-O {[%clk 0:02:53.3]} 13. Rfe1 {[%clk 0:02:49.3]} 13... Rfc8 {[%clk 0:02:42.1]}
14. h3 {[%clk 0:02:47.6]} 14... Na5 {[%clk 0:02:40.6]} 15. Ne5 {[%clk
0:02:43.1]} 15... Bd6 {[%clk 0:02:25.1]} 16. Bb5 {[%clk 0:02:21.6]} 16... Ne4
{[%clk 0:02:13.1]} 17. Nxe4 {[%clk 0:01:59.5]} 17... Bxe4 {[%clk 0:02:12.7]} 18.
f3 {[%clk 0:01:57]} 18... Bh7 {[%clk 0:02:00.2]} 19. Bh2 {[%clk 0:01:51.1]}
19... Nb3 {[%clk 0:01:58.6]} 20. Ra2 {[%clk 0:01:39.3]} 20... Ra5 {[%clk
0:01:43.4]} 21. Bd3 {[%clk 0:01:36.9]} 21... Bxe5 {[%clk 0:01:30.4]} 22. Bxh7+
{[%clk 0:01:34.3]} 22... Kxh7 {[%clk 0:01:31.3]} 23. Bxe5 {[%clk 0:01:29.5]}
23... b5 {[%clk 0:01:31.4]} 24. Bd6 {[%clk 0:01:18]} 24... Ra6 {[%clk
0:01:29.1]} 25. Bb4 {[%clk 0:01:15.4]} 25... g5 {[%clk 0:01:21]} 26. g4 {[%clk
0:01:13.8]} 26... Kg6 {[%clk 0:01:19]} 27. Kf2 {[%clk 0:01:13]} 27... h5 {[%clk
0:01:10.6]} 28. Ke2 {[%clk 0:00:59.5]} 28... hxg4 {[%clk 0:01:10]} 29. hxg4
{[%clk 0:00:58.2]} 29... Rh8 {[%clk 0:01:10.5]} 30. Rb1 {[%clk 0:00:12.8]} 30...
Rh2+ {[%clk 0:01:08.2]} 31. Ke3 {[%clk 0:00:12.9]} 31... f5 {[%clk 0:01:03.9]}
32. Kd3 {[%clk 0:00:08.9]} 32... Rd2+ {[%clk 0:01:01.6]} 33. Ke3 {[%clk
0:00:08.5]} 33... f4# {[%clk 0:01:01.8]} 0-1

[Event "*** SCC Grand Prix: Titled Tuesday Blitz"]
[Site "Chess.com"]
[Date "2020.07.07"]
[Round "3"]
[White "RaunakSadhwani2005"]
[Black "temus_galaktionov"]
[Result "1-0"]
[WhiteElo "2925"]
[BlackElo "2654"]
[TimeControl "180+1"]
[EndTime "10:28:06 PDT"]
[Termination "RaunakSadhwani2005 won by checkmate"]

1. d4 {[%clk 0:02:59.6]} 1... c6 {[%clk 0:03:00.9]} 2. Nf3 {[%clk 0:02:53.9]}
2... d6 {[%clk 0:03:01.8]} 3. c4 {[%clk 0:02:49.7]} 3... g6 {[%clk 0:03:01.9]}
4. Nc3 {[%clk 0:02:49.5]} 4... Bg7 {[%clk 0:03:01.7]} 5. g3 {[%clk 0:02:49.3]}
5... Nd7 {[%clk 0:02:56.8]} 6. Bg2 {[%clk 0:02:46.7]} 6... Ngf6 {[%clk
0:02:55.8]} 7. O-O {[%clk 0:02:46]} 7... O-O {[%clk 0:02:55.4]} 8. b3 {[%clk
0:02:40.9]} 8... Re8 {[%clk 0:02:53.3]} 9. Bb2 {[%clk 0:02:37.9]} 9... e5 {[%clk
0:02:52.8]} 10. Re1 {[%clk 0:02:29.9]} 10... Qc7 {[%clk 0:02:49.7]} 11. d5
{[%clk 0:02:23.4]} 11... c5 {[%clk 0:02:41.2]} 12. Nd2 {[%clk 0:02:20.3]} 12...
Rf8 {[%clk 0:02:39.7]} 13. a4 {[%clk 0:02:14.7]} 13... Ne8 {[%clk 0:02:38.4]}
14. e4 {[%clk 0:02:01.1]} 14... Qd8 {[%clk 0:02:33.3]} 15. a5 {[%clk 0:01:56.6]}
15... f5 {[%clk 0:02:31.2]} 16. exf5 {[%clk 0:01:55.7]} 16... gxf5 {[%clk
0:02:32.1]} 17. a6 {[%clk 0:01:47.7]} 17... b6 {[%clk 0:02:30.1]} 18. Nb5 {[%clk
0:01:47.6]} 18... Nb8 {[%clk 0:02:29]} 19. f4 {[%clk 0:01:40.2]} 19... e4 {[%clk
0:02:26.5]} 20. Bxg7 {[%clk 0:01:36.4]} 20... Kxg7 {[%clk 0:02:27.4]} 21. b4
{[%clk 0:01:22.8]} 21... Nxa6 {[%clk 0:02:20.9]} 22. bxc5 {[%clk 0:01:22.6]}
22... dxc5 {[%clk 0:02:20.5]} 23. Rxa6 {[%clk 0:01:13.4]} 23... Bxa6 {[%clk
0:02:14.7]} 24. Qa1+ {[%clk 0:01:13.3]} 24... Qf6 {[%clk 0:02:06.4]} 25. Qxa6
{[%clk 0:01:13.3]} 25... Rf7 {[%clk 0:02:04.6]} 26. Nf1 {[%clk 0:01:04.2]} 26...
Nd6 {[%clk 0:01:56.2]} 27. Nxd6 {[%clk 0:00:58.5]} 27... Qxd6 {[%clk 0:01:57.1]}
28. Ne3 {[%clk 0:00:59.1]} 28... Raf8 {[%clk 0:01:44.9]} 29. Qa1+ {[%clk
0:00:57.6]} 29... Kg8 {[%clk 0:01:44.4]} 30. Qe5 {[%clk 0:00:58.1]} 30... Qg6
{[%clk 0:01:43.7]} 31. d6 {[%clk 0:00:51.8]} 31... Rd8 {[%clk 0:01:39]} 32. Rd1
{[%clk 0:00:47.7]} 32... Qf6 {[%clk 0:01:37.5]} 33. Bh3 {[%clk 0:00:44.7]} 33...
Qh6 {[%clk 0:01:16.7]} 34. Bxf5 {[%clk 0:00:38.9]} 34... Qh5 {[%clk 0:01:13.7]}
35. Be6 {[%clk 0:00:34.6]} 35... Qe2 {[%clk 0:01:13.2]} 36. Qg5+ {[%clk
0:00:29.3]} 36... Kf8 {[%clk 0:01:13]} 37. Qxd8+ {[%clk 0:00:29]} 37... Kg7
{[%clk 0:01:13.9]} 38. Qg5+ {[%clk 0:00:28]} 38... Kf8 {[%clk 0:01:13.7]} 39. f5
{[%clk 0:00:25.5]} 39... Rg7 {[%clk 0:01:07.9]} 40. Qd8# {[%clk 0:00:24.3]} 1-0